[Event "Live Chess"]
[Site "Chess.com"]
[Date "2023.05.21"]
[Round "-"]
[White "JanMur7"]
[Black "AyannaTang"]
[Result "1-0"]
[WhiteElo "1963"]
[BlackElo "230"]
[TimeControl "300"]
[EndTime "6:07:16 PDT"]
[Termination "JanMur7 won by checkmate"]

1. e4 {[%clk 0:04:53.3]} 1... e5 {[%clk 0:04:57.5]} 2. Nf3 {[%clk 0:04:52.2]}
2... Qe7 {[%clk 0:04:53.3]} 3. Nc3 {[%clk 0:04:50.7]} 3... Nc6 {[%clk
0:04:51.4]} 4. Nd5 {[%clk 0:04:49.2]} 4... Qd6 {[%clk 0:04:41.3]} 5. Bc4 {[%clk
0:04:41]} 5... Nb4 {[%clk 0:04:10.6]} 6. O-O {[%clk 0:04:36]} 6... Qc6 {[%clk
0:04:05.7]} 7. Nxb4 {[%clk 0:04:31.6]} 7... Qxc4 {[%clk 0:04:03.1]} 8. Nd5
{[%clk 0:04:30.6]} 8... Qxe4 {[%clk 0:03:50.5]} 9. Nxc7+ {[%clk 0:04:27.1]} 9...
Kd8 {[%clk 0:03:45.3]} 10. Nxa8 {[%clk 0:04:27]} 10... Qc6 {[%clk 0:03:41.8]}
11. Nxe5 {[%clk 0:04:24]} 11... Qb5 {[%clk 0:03:38.9]} 12. Nxf7+ {[%clk
0:04:21.7]} 12... Ke8 {[%clk 0:03:30.8]} 13. Nxh8 {[%clk 0:04:21.6]} 13... Qxf1+
{[%clk 0:03:29.3]} 14. Qxf1 {[%clk 0:04:19.8]} 14... Be7 {[%clk 0:03:25.1]} 15.
Qc4 {[%clk 0:04:18.3]} 15... Nf6 {[%clk 0:03:22]} 16. Qxc8+ {[%clk 0:04:13.4]}
16... Bd8 {[%clk 0:03:14.9]} 17. Qc4 {[%clk 0:04:13.3]} 17... Be7 {[%clk
0:03:12.7]} 18. Qf7+ {[%clk 0:04:12.6]} 18... Kd8 {[%clk 0:03:10.3]} 19. Qxg7
{[%clk 0:04:08]} 19... Ne8 {[%clk 0:03:06.8]} 20. Qc3 {[%clk 0:04:04.4]} 20...
h5 {[%clk 0:03:03.5]} 21. Nf7# {[%clk 0:04:04.3]} 1-0

[Event "Live Chess"]
[Site "Chess.com"]
[Date "2023.05.21"]
[Round "-"]
[White "PantherCal"]
[Black "FailsGambits"]
[Result "1-0"]
[WhiteElo "1792"]
[BlackElo "1330"]
[TimeControl "300"]
[EndTime "6:07:22 PDT"]
[Termination "PantherCal won by resignation"]

1. e4 {[%clk 0:04:54.2]} 1... e5 {[%clk 0:04:59.5]} 2. Nf3 {[%clk 0:04:53]} 2...
Nc6 {[%clk 0:04:58.9]} 3. Bc4 {[%clk 0:04:52.3]} 3... Be7 {[%clk 0:04:57.4]} 4.
O-O {[%clk 0:04:51.1]} 4... Nf6 {[%clk 0:04:56.9]} 5. d3 {[%clk 0:04:50]} 5...
O-O {[%clk 0:04:54.8]} 6. c3 {[%clk 0:04:48.8]} 6... d5 {[%clk 0:04:48.2]} 7.
exd5 {[%clk 0:04:47.6]} 7... Nxd5 {[%clk 0:04:47.8]} 8. Re1 {[%clk 0:04:45.7]}
8... Nb6 {[%clk 0:04:21.5]} 9. Bb3 {[%clk 0:04:44.4]} 9... Bf6 {[%clk
0:04:04.5]} 10. h3 {[%clk 0:04:39.5]} 10... Re8 {[%clk 0:04:00.7]} 11. Nbd2
{[%clk 0:04:37.3]} 11... Kh8 {[%clk 0:03:57.6]} 12. Ne4 {[%clk 0:04:36.3]} 12...
Be6 {[%clk 0:03:29.8]} 13. Bg5 {[%clk 0:04:27.6]} 13... Bxb3 {[%clk 0:03:17.6]}
14. Qxb3 {[%clk 0:04:21.7]} 14... Na5 {[%clk 0:02:50.8]} 15. Qxf7 {[%clk
0:04:20]} 15... Re7 {[%clk 0:02:17.9]} 16. Qh5 {[%clk 0:04:06.4]} 16... Re6
{[%clk 0:01:58.7]} 17. Qh4 {[%clk 0:03:28]} 17... Nd5 {[%clk 0:01:38.1]} 18.
Rad1 {[%clk 0:03:12.3]} 18... Bxg5 {[%clk 0:01:20]} 19. Nfxg5 {[%clk 0:02:55.8]}
19... Rh6 {[%clk 0:01:14.1]} 20. Nf7+ {[%clk 0:02:54.4]} 1-0

[Event "Live Chess"]
[Site "Chess.com"]
[Date "2023.05.21"]
[Round "-"]
[White "matt1979"]
[Black "Duke_of_Bebington"]
[Result "0-1"]
[WhiteElo "1532"]
[BlackElo "1574"]
[TimeControl "300"]
[EndTime "6:07:34 PDT"]
[Termination "Duke_of_Bebington won by resignation"]

1. f4 {[%clk 0:04:58.2]} 1... e5 {[%clk 0:04:53.3]} 2. e4 {[%clk 0:04:53]} 2...
exf4 {[%clk 0:04:51.3]} 3. Nf3 {[%clk 0:04:49]} 3... d5 {[%clk 0:04:48.2]} 4.
exd5 {[%clk 0:04:45.3]} 4... Nf6 {[%clk 0:04:47.3]} 5. Nc3 {[%clk 0:04:41.7]}
5... Nxd5 {[%clk 0:04:44.9]} 6. Bc4 {[%clk 0:04:37.9]} 6... Nxc3 {[%clk
0:04:37.1]} 7. bxc3 {[%clk 0:04:34.7]} 7... Bd6 {[%clk 0:04:35.8]} 8. O-O {[%clk
0:04:30.7]} 8... O-O {[%clk 0:04:34.3]} 9. d4 {[%clk 0:04:21.3]} 9... Bg4 {[%clk
0:04:32.5]} 10. h3 {[%clk 0:04:17.8]} 10... Bh5 {[%clk 0:04:30.1]} 11. Qe1
{[%clk 0:03:59.4]} 11... Re8 {[%clk 0:04:24.3]} 12. Qf2 {[%clk 0:03:53.9]} 12...
Nc6 {[%clk 0:04:06.8]} 13. Bd2 {[%clk 0:03:52.2]} 13... Ne7 {[%clk 0:03:45.6]}
14. Bd3 {[%clk 0:03:49.2]} 14... Bg6 {[%clk 0:03:42.9]} 15. Rae1 {[%clk
0:03:40.4]} 15... Bxd3 {[%clk 0:03:38.2]} 16. cxd3 {[%clk 0:03:39]} 16... Nf5
{[%clk 0:03:37.1]} 17. Kh2 {[%clk 0:03:22.3]} 17... Ne3 {[%clk 0:03:16.4]} 18.
Bxe3 {[%clk 0:03:17.9]} 18... fxe3+ {[%clk 0:03:15]} 0-1

[Event "Live Chess"]
[Site "Chess.com"]
[Date "2023.05.21"]
[Round "-"]
[White "Ayursworld"]
[Black "Ed_Knox"]
[Result "1-0"]
[WhiteElo "1403"]
[BlackElo "1456"]
[TimeControl "300"]
[EndTime "6:08:15 PDT"]
[Termination "Ayursworld won on time"]

1. e4 {[%clk 0:04:59.2]} 1... d5 {[%clk 0:04:59.1]} 2. exd5 {[%clk 0:04:56.9]}
2... Qxd5 {[%clk 0:04:58.5]} 3. Nc3 {[%clk 0:04:56]} 3... Qd8 {[%clk 0:04:57.6]}
4. Nf3 {[%clk 0:04:54.9]} 4... c6 {[%clk 0:04:56.8]} 5. d4 {[%clk 0:04:54]} 5...
Bf5 {[%clk 0:04:55.5]} 6. Bf4 {[%clk 0:04:52.3]} 6... e6 {[%clk 0:04:54.4]} 7.
Bc4 {[%clk 0:04:49.7]} 7... Nf6 {[%clk 0:04:52.5]} 8. O-O {[%clk 0:04:46.9]}
8... Be7 {[%clk 0:04:49.6]} 9. Qd2 {[%clk 0:04:40.4]} 9... O-O {[%clk
0:04:47.8]} 10. Be5 {[%clk 0:04:22.1]} 10... Nbd7 {[%clk 0:04:45.1]} 11. Bf4
{[%clk 0:04:18.3]} 11... Nb6 {[%clk 0:04:39]} 12. Bb3 {[%clk 0:04:13]} 12...
Nbd5 {[%clk 0:04:38.1]} 13. Nxd5 {[%clk 0:04:09.2]} 13... Nxd5 {[%clk 0:04:37]}
14. Bxd5 {[%clk 0:04:05.5]} 14... cxd5 {[%clk 0:04:35.6]} 15. Be5 {[%clk
0:03:55.7]} 15... Bf6 {[%clk 0:04:28.5]} 16. Bxf6 {[%clk 0:03:48.7]} 16... Qxf6
{[%clk 0:04:27.1]} 17. c3 {[%clk 0:03:47.6]} 17... Rac8 {[%clk 0:04:22.1]} 18.
Ne5 {[%clk 0:03:45]} 18... Rfd8 {[%clk 0:04:15.9]} 19. Rac1 {[%clk 0:03:35.6]}
19... Qe7 {[%clk 0:04:12.5]} 20. a3 {[%clk 0:03:33.4]} 20... f6 {[%clk 0:04:11]}
21. Nf3 {[%clk 0:03:30.3]} 21... Bg6 {[%clk 0:04:01.7]} 22. Nh4 {[%clk
0:03:25.9]} 22... Bf7 {[%clk 0:03:59.4]} 23. Nf3 {[%clk 0:03:17.9]} 23... e5
{[%clk 0:03:53.4]} 24. dxe5 {[%clk 0:03:15.7]} 24... fxe5 {[%clk 0:03:52.4]} 25.
Rfe1 {[%clk 0:03:14.4]} 25... e4 {[%clk 0:03:50.2]} 26. Nd4 {[%clk 0:03:13.3]}
26... Re8 {[%clk 0:03:38]} 27. Nf5 {[%clk 0:03:05]} 27... Qe5 {[%clk 0:03:24.4]}
28. Nd4 {[%clk 0:02:53.2]} 28... Rcd8 {[%clk 0:03:13]} 29. f3 {[%clk 0:02:35.7]}
29... Rd6 {[%clk 0:02:18.8]} 30. Nb5 {[%clk 0:02:21.6]} 30... Rh6 {[%clk
0:02:10]} 31. h3 {[%clk 0:02:08.6]} 31... a6 {[%clk 0:02:07.9]} 32. Nd4 {[%clk
0:02:04.8]} 32... Bg6 {[%clk 0:01:47.1]} 33. Qe3 {[%clk 0:01:42]} 33... Qg3
{[%clk 0:01:36.7]} 34. fxe4 {[%clk 0:01:32.9]} 34... Qxe3+ {[%clk 0:01:25.3]}
35. Rxe3 {[%clk 0:01:29.3]} 35... Bxe4 {[%clk 0:01:24.3]} 36. Nf5 {[%clk
0:01:17.7]} 36... Rg6 {[%clk 0:01:19.6]} 37. Nd4 {[%clk 0:01:07.5]} 37... Rxg2+
{[%clk 0:01:16.8]} 38. Kf1 {[%clk 0:01:04.3]} 38... Rf8+ {[%clk 0:01:11]} 39.
Ke1 {[%clk 0:01:02.3]} 39... Rg1+ {[%clk 0:01:09.8]} 40. Kd2 {[%clk 0:01:01.1]}
40... Rf2+ {[%clk 0:01:04.7]} 41. Ne2 {[%clk 0:00:59.8]} 41... Rgg2 {[%clk
0:00:47.5]} 42. Ke1 {[%clk 0:00:44.3]} 42... h6 {[%clk 0:00:22.6]} 43. Kd2
{[%clk 0:00:39]} 43... Bf3 {[%clk 0:00:19.4]} 44. Re1 {[%clk 0:00:36]} 44... Rh2
{[%clk 0:00:16.9]} 45. h4 {[%clk 0:00:26.9]} 45... Bxe2 {[%clk 0:00:15.6]} 46.
R1xe2 {[%clk 0:00:25.7]} 46... Rxe2+ {[%clk 0:00:14.9]} 47. Rxe2 {[%clk
0:00:24.6]} 47... Rxh4 {[%clk 0:00:14.1]} 48. b4 {[%clk 0:00:19.5]} 48... g5
{[%clk 0:00:12.6]} 49. a4 {[%clk 0:00:18.8]} 49... g4 {[%clk 0:00:11.2]} 50. a5
{[%clk 0:00:18.5]} 50... g3 {[%clk 0:00:09.6]} 51. Rg2 {[%clk 0:00:17.7]} 51...
Rg4 {[%clk 0:00:08.8]} 52. Ke2 {[%clk 0:00:16]} 52... h5 {[%clk 0:00:08.2]} 53.
Kf3 {[%clk 0:00:15.1]} 53... Rg7 {[%clk 0:00:06.5]} 54. Rxg3 {[%clk 0:00:14]}
54... Rxg3+ {[%clk 0:00:05.6]} 55. Kxg3 {[%clk 0:00:13.3]} 55... Kg7 {[%clk
0:00:04.6]} 56. Kh4 {[%clk 0:00:12.3]} 56... Kg6 {[%clk 0:00:04.3]} 57. Kg3
{[%clk 0:00:11]} 57... Kf5 {[%clk 0:00:03.4]} 58. Kh4 {[%clk 0:00:09.9]} 58...
Ke4 {[%clk 0:00:02.9]} 59. Kxh5 {[%clk 0:00:08.8]} 59... Kd3 {[%clk 0:00:02.7]}
60. Kg5 {[%clk 0:00:08.1]} 60... Kxc3 {[%clk 0:00:01.4]} 61. Kf5 {[%clk
0:00:07.8]} 61... Kxb4 {[%clk 0:00:00.9]} 62. Ke5 {[%clk 0:00:07.3]} 62... Kc3
{[%clk 0:00:00.2]} 63. Kxd5 {[%clk 0:00:06.3]} 1-0

[Event "Live Chess"]
[Site "Chess.com"]
[Date "2023.05.21"]
[Round "-"]
[White "LodeshChess"]
[Black "MartinWalker4"]
[Result "0-1"]
[WhiteElo "1175"]
[BlackElo "2044"]
[TimeControl "300"]
[EndTime "6:08:16 PDT"]
[Termination "MartinWalker4 won by resignation"]

1. e4 {[%clk 0:04:58.9]} 1... Nf6 {[%clk 0:04:57.5]} 2. e5 {[%clk 0:04:57.2]}
2... Nd5 {[%clk 0:04:56.3]} 3. c4 {[%clk 0:04:56.4]} 3... Nb6 {[%clk 0:04:54.9]}
4. d4 {[%clk 0:04:51.9]} 4... d6 {[%clk 0:04:53.6]} 5. Nf3 {[%clk 0:04:51]} 5...
g6 {[%clk 0:04:50.2]} 6. Be3 {[%clk 0:04:44.5]} 6... Bg7 {[%clk 0:04:48.7]} 7.
Bd3 {[%clk 0:04:40.6]} 7... O-O {[%clk 0:04:41.8]} 8. Qd2 {[%clk 0:04:35.2]}
8... dxe5 {[%clk 0:04:39]} 9. Nxe5 {[%clk 0:04:33.3]} 9... Bxe5 {[%clk
0:04:26.8]} 10. dxe5 {[%clk 0:04:31.7]} 10... Nc6 {[%clk 0:04:25.7]} 11. Bh6
{[%clk 0:04:28]} 11... Nxe5 {[%clk 0:04:23.9]} 12. Bxf8 {[%clk 0:04:14.6]} 12...
Qxd3 {[%clk 0:04:22.2]} 13. Bh6 {[%clk 0:04:11.7]} 13... Nbxc4 {[%clk
0:04:10.8]} 14. Qc3 {[%clk 0:03:46.3]} 14... Bf5 {[%clk 0:03:58.1]} 15. Qxd3
{[%clk 0:03:15.4]} 15... Nxd3+ {[%clk 0:03:55.7]} 16. Kf1 {[%clk 0:03:04.6]}
16... Ndxb2 {[%clk 0:03:50]} 17. Nc3 {[%clk 0:02:56.4]} 17... Rd8 {[%clk
0:03:47.5]} 18. g3 {[%clk 0:02:51.8]} 18... c6 {[%clk 0:03:39.4]} 19. Kg2 {[%clk
0:02:50.8]} 19... b5 {[%clk 0:03:37.1]} 20. Rhe1 {[%clk 0:02:35]} 20... e5
{[%clk 0:02:36.3]} 21. Bc1 {[%clk 0:02:27.3]} 21... Nd3 {[%clk 0:02:28.8]} 22.
Re2 {[%clk 0:02:18.8]} 22... a5 {[%clk 0:02:08.6]} 23. Ne4 {[%clk 0:02:09.8]}
23... Kg7 {[%clk 0:01:58.2]} 24. Bg5 {[%clk 0:01:56.5]} 24... Bxe4+ {[%clk
0:01:55.4]} 25. Rxe4 {[%clk 0:01:47.3]} 25... f6 {[%clk 0:01:54.2]} 26. Be3
{[%clk 0:01:37.2]} 26... f5 {[%clk 0:01:42.9]} 27. Rh4 {[%clk 0:01:01.4]} 27...
Nxe3+ {[%clk 0:01:41.3]} 28. fxe3 {[%clk 0:00:57.2]} 28... e4 {[%clk 0:01:40.1]}
29. g4 {[%clk 0:00:51.1]} 29... g5 {[%clk 0:01:28]} 30. Rh3 {[%clk 0:00:43.5]}
30... fxg4 {[%clk 0:01:25.6]} 31. Rg3 {[%clk 0:00:43.1]} 31... Ne5 {[%clk
0:01:19.2]} 32. h3 {[%clk 0:00:33.3]} 32... h5 {[%clk 0:01:06.6]} 33. hxg4
{[%clk 0:00:31.9]} 33... h4 {[%clk 0:01:04.9]} 34. Rf1 {[%clk 0:00:22.5]} 34...
Rd2+ {[%clk 0:00:58.4]} 35. Rf2 {[%clk 0:00:20.4]} 35... Rxf2+ {[%clk
0:00:56.3]} 36. Kxf2 {[%clk 0:00:20]} 36... Nd3+ {[%clk 0:00:54.9]} 37. Kg2
{[%clk 0:00:16.4]} 37... hxg3 {[%clk 0:00:53.8]} 38. Kxg3 {[%clk 0:00:15.8]}
38... c5 {[%clk 0:00:52.2]} 39. Kg2 {[%clk 0:00:14.5]} 39... c4 {[%clk
0:00:51.2]} 40. Kf1 {[%clk 0:00:13.6]} 40... c3 {[%clk 0:00:50.3]} 0-1

[Event "Live Chess"]
[Site "Chess.com"]
[Date "2023.05.21"]
[Round "-"]
[White "SupremeTactician"]
[Black "ProfPoisson"]
[Result "1-0"]
[WhiteElo "2241"]
[BlackElo "1213"]
[TimeControl "300"]
[EndTime "6:08:20 PDT"]
[Termination "SupremeTactician won by resignation"]

1. e4 {[%clk 0:04:49.1]} 1... e5 {[%clk 0:04:58]} 2. Nf3 {[%clk 0:04:47.2]} 2...
Nf6 {[%clk 0:04:56.6]} 3. Nc3 {[%clk 0:04:47.1]} 3... Nc6 {[%clk 0:04:54]} 4.
Bb5 {[%clk 0:04:46.7]} 4... Bc5 {[%clk 0:04:50.1]} 5. O-O {[%clk 0:04:44.6]}
5... O-O {[%clk 0:04:47.7]} 6. Nxe5 {[%clk 0:04:42.8]} 6... Nxe5 {[%clk
0:04:44.2]} 7. d4 {[%clk 0:04:42.1]} 7... Bxd4 {[%clk 0:04:07.8]} 8. Qxd4 {[%clk
0:04:37.6]} 8... c6 {[%clk 0:04:01.8]} 9. Be2 {[%clk 0:04:34.2]} 9... Re8 {[%clk
0:03:51.4]} 10. f4 {[%clk 0:04:31.5]} 10... Neg4 {[%clk 0:03:44.8]} 11. e5
{[%clk 0:04:26.7]} 11... Nxe5 {[%clk 0:02:46.5]} 12. fxe5 {[%clk 0:04:23.9]}
12... Nd5 {[%clk 0:02:45.1]} 13. Nxd5 {[%clk 0:04:22]} 13... cxd5 {[%clk
0:02:43.6]} 14. Qxd5 {[%clk 0:04:21]} 14... Qb6+ {[%clk 0:02:39.1]} 15. Kh1
{[%clk 0:04:18.4]} 15... Re6 {[%clk 0:02:20.2]} 16. Bg4 {[%clk 0:03:51.7]} 16...
Rg6 {[%clk 0:02:15.2]} 17. Qxf7+ {[%clk 0:03:49.3]} 1-0

[Event "Live Chess"]
[Site "Chess.com"]
[Date "2023.05.21"]
[Round "-"]
[White "luckywookie"]
[Black "Tushinskiy"]
[Result "1-0"]
[WhiteElo "821"]
[BlackElo "2207"]
[TimeControl "300"]
[EndTime "6:08:22 PDT"]
[Termination "luckywookie won by checkmate"]

1. e4 {[%clk 0:04:56.4]} 1... e5 {[%clk 0:04:57.4]} 2. Nf3 {[%clk 0:04:54.4]}
2... d6 {[%clk 0:04:57.3]} 3. c3 {[%clk 0:04:47.5]} 3... Bg4 {[%clk 0:04:57.2]}
4. Be2 {[%clk 0:04:45.7]} 4... Nd7 {[%clk 0:04:55.6]} 5. d4 {[%clk 0:04:44.8]}
5... Ngf6 {[%clk 0:04:54.1]} 6. dxe5 {[%clk 0:04:43.2]} 6... dxe5 {[%clk
0:04:54]} 7. Be3 {[%clk 0:04:38.1]} 7... c6 {[%clk 0:04:52.8]} 8. O-O {[%clk
0:04:34.5]} 8... Qc7 {[%clk 0:04:51.3]} 9. Nbd2 {[%clk 0:04:27.2]} 9... Be7
{[%clk 0:04:48.7]} 10. Nc4 {[%clk 0:04:24.8]} 10... Nxe4 {[%clk 0:04:46.5]} 11.
Nfxe5 {[%clk 0:04:10.8]} 11... Bxe2 {[%clk 0:04:42.2]} 12. Qxe2 {[%clk
0:04:07.7]} 12... Nxe5 {[%clk 0:04:41.5]} 13. Bf4 {[%clk 0:03:58.5]} 13... Nf6
{[%clk 0:04:20.1]} 14. Bxe5 {[%clk 0:03:47.8]} 14... Qd7 {[%clk 0:04:16.8]} 15.
Bxf6 {[%clk 0:03:43.3]} 15... gxf6 {[%clk 0:04:14.6]} 16. Rfe1 {[%clk
0:03:41.5]} 16... Kf8 {[%clk 0:04:07.8]} 17. Rad1 {[%clk 0:03:39.2]} 17... Qc7
{[%clk 0:04:01.5]} 18. Rd3 {[%clk 0:03:27.4]} 18... b5 {[%clk 0:03:53.1]} 19.
Nd2 {[%clk 0:03:23.6]} 19... h5 {[%clk 0:03:49]} 20. Re3 {[%clk 0:03:15.4]}
20... Bc5 {[%clk 0:03:41.2]} 21. Re4 {[%clk 0:02:47]} 21... Rd8 {[%clk
0:03:32.1]} 22. Nf3 {[%clk 0:02:45.1]} 22... Bb6 {[%clk 0:03:22]} 23. a3 {[%clk
0:02:34.8]} 23... Kg7 {[%clk 0:03:10.5]} 24. Nh4 {[%clk 0:02:26.2]} 24... Rd5
{[%clk 0:03:09]} 25. Qf3 {[%clk 0:02:02.8]} 25... Rg5 {[%clk 0:02:54.4]} 26.
Nf5+ {[%clk 0:01:55.1]} 26... Kg6 {[%clk 0:02:53]} 27. Ne7+ {[%clk 0:01:47.4]}
27... Kg7 {[%clk 0:02:51]} 28. Nf5+ {[%clk 0:01:32.9]} 28... Kg6 {[%clk
0:02:49.5]} 29. Ne7+ {[%clk 0:01:30.1]} 29... Kg7 {[%clk 0:02:48.1]} 30. h4
{[%clk 0:01:22.1]} 30... Rg4 {[%clk 0:02:33.8]} 31. Nf5+ {[%clk 0:01:14.5]}
31... Kh7 {[%clk 0:01:52.8]} 32. Rxg4 {[%clk 0:01:09]} 32... hxg4 {[%clk
0:01:51.4]} 33. Qxg4 {[%clk 0:01:07.3]} 33... Rd8 {[%clk 0:01:50.4]} 34. Qg7#
{[%clk 0:01:03.5]} 1-0

[Event "Live Chess"]
[Site "Chess.com"]
[Date "2023.05.21"]
[Round "-"]
[White "Chesscoach_Golichenko"]
[Black "MovebyMove"]
[Result "1-0"]
[WhiteElo "2625"]
[BlackElo "2458"]
[TimeControl "300"]
[EndTime "6:08:36 PDT"]
[Termination "Chesscoach_Golichenko won on time"]

1. d4 {[%clk 0:04:57.4]} 1... Nf6 {[%clk 0:04:55.4]} 2. c4 {[%clk 0:04:54.4]}
2... e6 {[%clk 0:04:52.7]} 3. Nc3 {[%clk 0:04:52.8]} 3... d5 {[%clk 0:04:50.4]}
4. Nf3 {[%clk 0:04:51.3]} 4... c6 {[%clk 0:04:47.6]} 5. e3 {[%clk 0:04:49.7]}
5... Nbd7 {[%clk 0:04:44.6]} 6. Qc2 {[%clk 0:04:48.1]} 6... Bd6 {[%clk
0:04:39.4]} 7. g4 {[%clk 0:04:44.8]} 7... Bb4 {[%clk 0:04:31.5]} 8. Rg1 {[%clk
0:04:31.3]} 8... Ne4 {[%clk 0:04:24]} 9. Bd2 {[%clk 0:04:28.3]} 9... Nxd2 {[%clk
0:04:21.4]} 10. Nxd2 {[%clk 0:04:26.3]} 10... O-O {[%clk 0:04:13.1]} 11. a3
{[%clk 0:04:24.4]} 11... Bxc3 {[%clk 0:04:05]} 12. Qxc3 {[%clk 0:04:22.4]} 12...
b6 {[%clk 0:03:58.7]} 13. O-O-O {[%clk 0:04:08.7]} 13... Bb7 {[%clk 0:03:57.1]}
14. Kb1 {[%clk 0:04:07.6]} 14... Qe7 {[%clk 0:03:55.2]} 15. f4 {[%clk
0:04:05.5]} 15... c5 {[%clk 0:03:47.9]} 16. cxd5 {[%clk 0:04:00.2]} 16... exd5
{[%clk 0:03:43.9]} 17. Bb5 {[%clk 0:03:57.3]} 17... Nf6 {[%clk 0:03:38.1]} 18.
g5 {[%clk 0:03:55.1]} 18... Ne4 {[%clk 0:03:36]} 19. Nxe4 {[%clk 0:03:54.1]}
19... Qxe4+ {[%clk 0:03:27.8]} 20. Bd3 {[%clk 0:03:48.5]} 20... Qe7 {[%clk
0:03:23.6]} 21. h4 {[%clk 0:03:30.6]} 21... Rfe8 {[%clk 0:03:04.7]} 22. Rde1
{[%clk 0:03:25.2]} 22... cxd4 {[%clk 0:02:54.8]} 23. Qxd4 {[%clk 0:03:16.8]}
23... Qc5 {[%clk 0:02:52.4]} 24. h5 {[%clk 0:03:13.8]} 24... Rac8 {[%clk
0:01:59.5]} 25. h6 {[%clk 0:03:06]} 25... Qxd4 {[%clk 0:01:57]} 26. exd4 {[%clk
0:03:05.9]} 26... g6 {[%clk 0:01:54.6]} 27. f5 {[%clk 0:02:57.3]} 27... Bc6
{[%clk 0:01:41.5]} 28. f6 {[%clk 0:02:50.9]} 28... Kf8 {[%clk 0:01:38.8]} 29.
Ba6 {[%clk 0:02:44.5]} 29... Rcd8 {[%clk 0:01:24.3]} 30. Rc1 {[%clk 0:02:30.3]}
30... Bd7 {[%clk 0:01:18.2]} 31. Rc7 {[%clk 0:02:27.3]} 31... Re4 {[%clk
0:01:02.8]} 32. Rgc1 {[%clk 0:02:22.6]} 32... Bf5 {[%clk 0:00:56.9]} 33. Ka2
{[%clk 0:02:12.6]} 33... Rxd4 {[%clk 0:00:54]} 34. Rxa7 {[%clk 0:02:10.7]} 34...
Be6 {[%clk 0:00:39.3]} 35. Rc6 {[%clk 0:01:35.3]} 35... Rg4 {[%clk 0:00:29.8]}
36. Rxe6 {[%clk 0:01:32]} 36... fxe6 {[%clk 0:00:28.3]} 37. Rxh7 {[%clk
0:01:30.9]} 37... Kg8 {[%clk 0:00:20.8]} 38. Rg7+ {[%clk 0:01:27.9]} 38... Kh8
{[%clk 0:00:19.6]} 39. Rxg6 {[%clk 0:01:24.5]} 39... d4 {[%clk 0:00:16.7]} 40.
f7 {[%clk 0:01:21.7]} 40... Re4 {[%clk 0:00:09.6]} 41. Rf6 {[%clk 0:01:16.1]}
41... Rf8 {[%clk 0:00:08]} 42. g6 {[%clk 0:01:12.5]} 42... d3 {[%clk 0:00:02.8]}
43. g7+ {[%clk 0:01:09.8]} 43... Kh7 {[%clk 0:00:01.7]} 44. Bxd3 {[%clk
0:01:06.4]} 1-0

[Event "Live Chess"]
[Site "Chess.com"]
[Date "2023.05.21"]
[Round "-"]
[White "f4nomore"]
[Black "diana21strabt"]
[Result "0-1"]
[WhiteElo "1377"]
[BlackElo "1748"]
[TimeControl "300"]
[EndTime "6:08:57 PDT"]
[Termination "diana21strabt won on time"]

1. d4 {[%clk 0:04:57.8]} 1... Nf6 {[%clk 0:04:58.8]} 2. Bg5 {[%clk 0:04:55.3]}
2... Ne4 {[%clk 0:04:56.8]} 3. Bh4 {[%clk 0:04:54]} 3... g5 {[%clk 0:04:55.2]}
4. Bg3 {[%clk 0:04:52.4]} 4... Nxg3 {[%clk 0:04:53.9]} 5. fxg3 {[%clk
0:04:51.3]} 5... d5 {[%clk 0:04:53]} 6. Nf3 {[%clk 0:04:48.7]} 6... e6 {[%clk
0:04:51.2]} 7. e3 {[%clk 0:04:46.5]} 7... h5 {[%clk 0:04:43.9]} 8. Ne5 {[%clk
0:04:42.5]} 8... Bd6 {[%clk 0:04:38.4]} 9. Nd3 {[%clk 0:04:22]} 9... h4 {[%clk
0:04:31.7]} 10. g4 {[%clk 0:04:14.2]} 10... Nc6 {[%clk 0:04:23.9]} 11. Be2
{[%clk 0:04:09]} 11... Qf6 {[%clk 0:04:22]} 12. Rf1 {[%clk 0:04:05.8]} 12... Qg6
{[%clk 0:04:20.1]} 13. Nf2 {[%clk 0:03:48.4]} 13... Bxh2 {[%clk 0:04:14.1]} 14.
Bd3 {[%clk 0:03:46.4]} 14... Qh6 {[%clk 0:04:04.4]} 15. Qe2 {[%clk 0:03:43.1]}
15... Bg3 {[%clk 0:04:02.5]} 16. Nc3 {[%clk 0:03:41.1]} 16... h3 {[%clk
0:03:57]} 17. gxh3 {[%clk 0:03:39.4]} 17... Qxh3 {[%clk 0:03:52.4]} 18. O-O-O
{[%clk 0:03:36.7]} 18... Bxf2 {[%clk 0:03:50.6]} 19. Rxf2 {[%clk 0:03:34.7]}
19... Bd7 {[%clk 0:03:42.8]} 20. Rdf1 {[%clk 0:03:30.8]} 20... Rf8 {[%clk
0:03:19.4]} 21. Bg6 {[%clk 0:03:12.9]} 21... O-O-O {[%clk 0:03:07.3]} 22. Rxf7
{[%clk 0:03:06.2]} 22... Rxf7 {[%clk 0:03:02.2]} 23. Rxf7 {[%clk 0:03:03.1]}
23... Qh1+ {[%clk 0:02:51.4]} 24. Rf1 {[%clk 0:02:57.1]} 24... Qh6 {[%clk
0:02:47]} 25. Bd3 {[%clk 0:02:42.5]} 25... Nb4 {[%clk 0:02:44.1]} 26. a3 {[%clk
0:02:39.7]} 26... Nxd3+ {[%clk 0:02:42.5]} 27. Qxd3 {[%clk 0:02:37.9]} 27... Qh3
{[%clk 0:02:39.7]} 28. Nd1 {[%clk 0:02:26.6]} 28... Qxg4 {[%clk 0:02:36.8]} 29.
Nf2 {[%clk 0:02:19.5]} 29... Qg3 {[%clk 0:02:24.9]} 30. e4 {[%clk 0:02:08.2]}
30... Qxd3 {[%clk 0:02:18.1]} 31. cxd3 {[%clk 0:02:04.8]} 31... Bb5 {[%clk
0:02:14.5]} 32. exd5 {[%clk 0:02:00.7]} 32... Rxd5 {[%clk 0:02:13.2]} 33. Re1
{[%clk 0:01:55.8]} 33... Kd7 {[%clk 0:02:09.7]} 34. Re3 {[%clk 0:01:52.5]} 34...
Rxd4 {[%clk 0:02:06]} 35. Kd2 {[%clk 0:01:50.4]} 35... c5 {[%clk 0:01:59]} 36.
Kc3 {[%clk 0:01:47.1]} 36... g4 {[%clk 0:01:51.8]} 37. b3 {[%clk 0:01:42.6]}
37... Rf4 {[%clk 0:01:34.9]} 38. Ne4 {[%clk 0:01:34.8]} 38... b6 {[%clk
0:01:23.3]} 39. Rg3 {[%clk 0:01:27.7]} 39... Rf3 {[%clk 0:01:12.4]} 40. Rxg4
{[%clk 0:01:24.7]} 40... Rxd3+ {[%clk 0:01:11]} 41. Kb2 {[%clk 0:01:21.5]} 41...
Rd4 {[%clk 0:01:08.7]} 42. Rg7+ {[%clk 0:01:12.1]} 42... Kc6 {[%clk 0:01:03.8]}
43. Nc3 {[%clk 0:01:06.1]} 43... a6 {[%clk 0:00:58.7]} 44. a4 {[%clk 0:01:02.9]}
44... Bd3 {[%clk 0:00:51.3]} 45. Re7 {[%clk 0:00:56.3]} 45... Bf5 {[%clk
0:00:49.2]} 46. Re8 {[%clk 0:00:45.1]} 46... Rd2+ {[%clk 0:00:47.6]} 47. Ka3
{[%clk 0:00:42.5]} 47... Rc2 {[%clk 0:00:43.6]} 48. Nd1 {[%clk 0:00:24.6]} 48...
Rc1 {[%clk 0:00:42.3]} 49. Ne3 {[%clk 0:00:22.3]} 49... Ra1+ {[%clk 0:00:39.3]}
50. Kb2 {[%clk 0:00:19.5]} 50... Rb1+ {[%clk 0:00:38.4]} 51. Ka3 {[%clk
0:00:18.4]} 51... Bc2 {[%clk 0:00:27]} 52. Rxe6+ {[%clk 0:00:13.9]} 52... Kd7
{[%clk 0:00:23.3]} 53. Rxb6 {[%clk 0:00:10]} 53... Bd3 {[%clk 0:00:20.2]} 54.
Nc4 {[%clk 0:00:01.2]} 54... Bxc4 {[%clk 0:00:18.7]} 0-1